Cogmind - Beta 17 @@@ ROGUE MODE // 2026.07.05 @ 21:55:17 Player: Cinder Result: Destroyed by G-67 Veteran with Field Laser Performance ------------- Evolutions (6) 3000 Regions Visited (14) 2800 Robots Destroyed (121) 605 Value Destroyed (4742) 4742 Prototype IDs (17) 340 Alien Tech Used (0) 0 Bonus (2331) 2331 TOTAL SCORE: 13818 Bonus ------- High Alert Combat Kills 261 Follower Combat Kills 236 Registered with UFD 300 Met Optimus in HQ 500 MAIN.C Attacked Warlord 500 Warlord Defense Kills 534 Cogmind --------- Core Integrity 0/1150 Matter 300/300 Energy 100/100 System Corruption 5% Temperature Cool (0) Movement Core (50) Location -4/Warlord Parts ------- > --- POWER (2) -------- (None) > --- PROPULSION (5) --- (None) > --- UTILITY (9) ------ (None) > --- WEAPON (3) ------- (None) > --- INVENTORY (5) ---- Light Antimatter Reactor Compact Battery (200) Vortex Shotgun (50) Vortex Shotgun (50) Advanced Plasma Cannon Peak State ------------ > --- POWER ------------ Reinforced Fission Core Heavy Antimatter Reactor > --- PROPULSION ------- Wheel Wheel Compact Wheel Armored Huge Wheel > --- UTILITY ---------- Scrap Suit Scrap Suit Advanced Heat Sink Experimental Heat Sink Huge Storage Unit Enhanced Optical Array Improved Force Field > --- WEAPON ----------- Advanced Variable Charge Gun Cooled Plasma Cannon Vortex Lance > --- INVENTORY -------- Fission Core Neutrino Core Light Antimatter Reactor Light Antimatter Reactor Wheel Wheel Wheel Improved Heat Sink Huge Storage Unit Compact Battery High-capacity Matter Pod Improved Medium Armor Plating Long-range Tractor Beam Long-range Tractor Beam Cooled Pulse Rifle Improved Spread Laser Thermic Laser Thermic Laser Wave Gun Cooled Plasma Cannon Cooled Plasma Cannon Advanced Plasma Cannon Advanced Plasma Cannon Vortex Catalyst Activator [Rating: 101] Favorites ----------- Power Improved Deuterium Engine Engine Improved Deuterium Engine Power Core Reinforced Fission Core Reactor Heavy Antimatter Reactor Propulsion Wheel Wheel Wheel Utility Huge Storage Unit Device Improved Heat Sink Storage Huge Storage Unit Processor Enhanced Optical Array Hackware Hacking Suite Protection Improved Medium Armor Plating Weapon Improved Spread Laser Energy Gun Improved Spread Laser Energy Cannon Cooled Plasma Cannon Ballistic Gun Assault Rifle Launcher Vortex Catalyst Activator Piercing Weapon Vortex Lance Build | -11 -10 -10 -9 -8 -7 -7 -7 -7 -5 -5 -5 -4 -4 -4 ------- Run | Yrd Mat Min Mat Mat Fac Sto Rec Scr Fac Was Fac Fac Upp War Slots Evolved 12 | . . . 2 2 2 . . . 4 . . 2 . . Power 1 | . . . . . . . . . 1 . . . . . Propulsion 3 | . . . 1 . . . . . 1 . . 1 . . Utility 7 | . . . 1 1 2 . . . 2 . . 1 . . Weapon 1 | . . . . 1 . . . . . . . . . . Parts Attached 105 | 9 3 . 9 6 7 7 5 5 27 1 4 12 4 6 Power 14 | 1 . . 2 . 1 . 1 . 7 . 1 1 . . Engine 9 | 1 . . 2 . 1 . 1 . 4 . . . . . Core 4 | . . . . . . . . . 3 . 1 . . . Reactor 1 | . . . . . . . . . . . . 1 . . Propulsion 27 | 3 1 . 3 1 2 . 1 . 7 . 1 4 1 3 Treads . | . . . . . . . . . . . . . . . Leg . | . . . . . . . . . . . . . . . Wheel 27 | 3 1 . 3 1 2 . 1 . 7 . 1 4 1 3 Hover . | . . . . . . . . . . . . . . . Flight . | . . . . . . . . . . . . . . . Utility 44 | 2 2 . 1 4 3 2 3 5 11 1 1 6 3 . Device 18 | 1 . . . 2 . . 1 3 4 . 1 3 3 . Storage 4 | 1 2 . . . . . . . . . . 1 . . Processor 4 | . . . . . 2 . . 1 1 . . . . . Hackware 1 | . . . . . . . . . 1 . . . . . Protection 17 | . . . 1 2 1 2 2 1 5 1 . 2 . . Artifact . | . . . . . . . . . . . . . . . Weapon 20 | 3 . . 3 1 1 5 . . 2 . 1 1 . 3 Energy Gun 13 | 1 . . 2 1 1 5 . . 1 . . 1 . 1 Energy Cannon 2 | . . . . . . . . . 1 . 1 . . . Ballistic Gun 3 | 2 . . 1 . . . . . . . . . . . Ballistic Cannon . | . . . . . . . . . . . . . . . Launcher 1 | . . . . . . . . . . . . . . 1 Special Weapon . | . . . . . . . . . . . . . . . Impact Weapon . | . . . . . . . . . . . . . . . Slashing Weapon . | . . . . . . . . . . . . . . . Piercing Weapon 1 | . . . . . . . . . . . . . . 1 Special Melee Weapon . | . . . . . . . . . . . . . . . Unidentified Prototypes 14 | . . . 2 . . 4 . . 3 . . 2 . 3 Parts Lost 38 | . . . 1 1 . . 1 . 9 1 . 7 2 16 Power 4 | . . . . . . . . . 2 . . . . 2 Propulsion 14 | . . . 1 . . . . . 2 . . 3 1 7 Utility 16 | . . . . 1 . . 1 . 3 . . 4 1 6 Weapon 4 | . . . . . . . . . 2 1 . . . 1 Highest Loss Streak 16 | . . . 1 1 . . 1 . 2 1 . 4 3 16 To Critical Strikes . | . . . . . . . . . . . . . . . Average Backups 19 | 1 9 14 19 24 24 24 23 20 20 19 18 19 21 21 Power 2 | . 1 1 2 3 3 3 2 1 2 3 2 2 4 3 Propulsion 3 | . 3 4 5 6 5 5 5 3 2 3 3 2 3 2 Utility 8 | . 1 3 5 8 9 10 10 9 9 7 8 8 7 6 Weapon 5 | . 2 5 6 6 6 6 6 4 6 5 4 5 6 8 Tool/Special . | . . . . . . . . . . . . . . . Unused Backups 65 | . 1 . 3 4 4 4 . 10 15 2 1 2 . 19 Power 10 | . . . 1 . 2 . . 1 2 . . . . 4 Propulsion 6 | . . . . . . 2 . 2 2 . . . . . Utility 21 | . 1 . . 1 2 . . 5 4 . 1 1 . 6 Weapon 27 | . . . 2 3 . 2 . 2 6 2 . 1 . 9 Tool/Special 1 | . . . . . . . . . 1 . . . . . Average Slot Usage (%) 90 | . 100 100 99 99 99 91 91 92 90 80 73 76 82 76 Engine 6 | . 14 14 11 9 7 7 7 7 6 5 4 . . . Core 2 | . . . . . . . . . 3 5 5 9 5 4 Wheel 19 | . 28 28 33 27 23 15 15 15 16 17 17 19 20 18 Device 14 | . 14 14 11 18 15 15 14 15 14 13 8 12 24 23 Storage 7 | . 14 14 11 9 7 7 7 7 5 5 5 5 5 4 Processor 5 | . . . . . 6 7 7 7 6 5 5 5 5 4 Protection 9 | . . . 10 9 15 15 15 15 8 5 5 7 . . Energy Gun 16 | . . . 10 26 23 22 23 23 14 11 11 10 10 8 Energy Cannon 1 | . . . . . . . . . 2 4 5 5 5 4 Ballistic Gun 3 | . 28 28 11 . . . . . . . . . . . Peak Build Rating 101 | 7 8 8 19 22 37 42 46 52 85 89 85 99 93 101 Average Rating 51 | 5 7 8 15 21 29 39 44 49 73 83 83 91 92 85 On Entrance 43 | . 7 8 8 19 22 37 42 46 52 82 77 85 79 93 Avg Prop Armor Cover (%) . | . . . . . . . . . . . . . . . Naked Turns 13 | . . . . . . . . . . . . . . 13 Heaviest Build 189 | 14 89 89 105 108 108 108 117 118 153 177 173 189 157 157 Greatest Support 72 | 26 20 20 42 36 38 38 44 44 56 54 54 72 70 64 Greatest Overweight (x) 6 | . 4 4 3 2 2 2 3 2 3 3 3 3 2 6 Average Overweight (x) 2 | . 2 4 2 2 2 2 2 2 2 2 3 2 2 1 Largest Inventory Capacity 25 | 8 25 25 25 25 25 25 25 25 25 25 25 25 25 25 Average Capacity 24 | 7 18 25 25 25 25 25 25 25 25 25 25 25 25 23 Most Carried 25 | 4 13 16 25 25 25 25 25 25 25 25 25 25 25 25 Average Carried 21 | 2 9 14 19 24 24 24 24 21 23 24 24 22 21 21 Final Capacity 25 | 8 25 25 25 25 25 25 25 25 25 25 25 25 25 5 Final Carried 25 | 4 13 16 25 25 25 25 24 24 24 25 25 25 21 5 Scrap Suit Usage (%) 6 | . . . . . . . . . . . . . 99 90 Class Distribution -------------------- 40% | Tank 36% | Scavenger-Tank 17% | Mutant 5% | Commander-Tank Dominant Class ---------------- Mutant | -10/Materials Mutant | -10/Mines Mutant | -9/Materials Tank | -8/Materials Scavenger-Tank | -7/Factory Scavenger-Tank | -7/Storage Commander-Tank | -7/Recycling Tank | -7/Scraptown Tank | -5/Factory Scavenger-Tank | -5/Waste Scavenger-Tank | -5/Factory Scavenger-Tank | -4/Factory Scavenger-Tank | -4/Upper Caves Scavenger-Tank | -4/Warlord Resources | -11 -10 -10 -9 -8 -7 -7 -7 -7 -5 -5 -5 -4 -4 -4 ----------- Run | Yrd Mat Min Mat Mat Fac Sto Rec Scr Fac Was Fac Fac Upp War Matter Collected 1861 | 334 154 119 148 60 60 80 55 255 335 10 66 120 40 25 Remotely . | . . . . . . . . . . . . . . . Salvage Created 5518 | 158 216 88 421 448 45 227 492 . 1761 . 120 1196 140 206 Parts 225 | 8 16 6 24 20 6 9 17 . 65 . 10 40 2 2 Haulers Intercepted 3 | . 1 . 1 . . . . . 1 . . . . . Recyclers Shooed 4 | . 1 . . . . . . . 3 . . . . . Parts Field Recycled . | . . . . . . . . . . . . . . . Retrieved Matter . | . . . . . . . . . . . . . . . Parts Self-Destructed 1 | . . . . . . . . . . . . . 1 . Prevented . | . . . . . . . . . . . . . . . Parts Restored . | . . . . . . . . . . . . . . . Kills | -11 -10 -10 -9 -8 -7 -7 -7 -7 -5 -5 -5 -4 -4 -4 ------- Run | Yrd Mat Min Mat Mat Fac Sto Rec Scr Fac Was Fac Fac Upp War Combat Hostiles Destroyed 89 | . 6 2 7 7 1 3 4 . 29 . 2 21 3 4 Guns 61 | . 6 2 7 7 1 3 4 . 20 . . 11 . . Cannons 17 | . . . . . . . . . 6 . 2 7 2 . AOE 7 | . . . . . . . . . 3 . . . . 4 Classes Destroyed 15 | 3 3 . 3 1 1 1 . . 2 . . 1 . . Worker 10 | 1 . . 1 . 1 . . . 2 . 1 4 . . Builder 3 | . . . 1 2 . . . . . . . . . . Tunneler 4 | 2 . . . . . . . . . . 1 1 . . Hauler 3 | . 1 . 1 . . . . . 1 . . . . . Recycler 7 | 1 . . . . . . 4 . 2 . . . . . Operator 2 | . . . . . . 1 . . . . . 1 . . Watcher 3 | . . . 1 1 . . . . . . . 1 . . Swarmer 20 | . 3 . 2 . . . . . 7 . . 7 1 . Grunt 27 | . 3 2 2 3 . . . . 10 . . 3 1 3 Brawler 4 | . . . . . . . . . 1 . . 2 . 1 Duelist 1 | . . . . . . . . . . . . 1 . . Sentry 16 | . . . 3 3 . 3 3 . 1 . . 2 1 . Specialist 3 | . . . . . . . . . 3 . . . . . Hunter 10 | . . . . 1 . . . . 3 . . 6 . . Programmer 8 | . . . . . 1 . 1 . 4 . 2 . . . Best Kill Streak 8 | 3 3 2 2 3 1 1 4 . 8 . 3 5 4 4 Combat Bots Only 5 | . 3 2 2 3 1 1 1 . 4 . 2 5 4 4 Max Kills in Single Turn 4 | 2 1 1 1 2 1 1 1 . 2 . 1 1 1 4 Gunslinging . | . . . . . . . . . . . . . . . Exploded 4 | . . . . . . . . . 2 . . . . 4 Melee . | . . . . . . . . . . . . . . . Uniques/NPCs Destroyed . | . . . . . . . . . . . . . . . Combat | -11 -10 -10 -9 -8 -7 -7 -7 -7 -5 -5 -5 -4 -4 -4 -------- Run | Yrd Mat Min Mat Mat Fac Sto Rec Scr Fac Was Fac Fac Upp War Hostile Shots Fired 891 | . 19 11 31 25 12 63 54 . 157 2 5 282 22 208 Missed 283 | . 3 . 11 8 3 28 17 . 40 . 1 93 9 70 Hits 608 | . 16 11 20 17 9 35 37 . 117 2 4 189 13 138 Melee 13 | . . . . . . . . . 2 2 . 4 . 5 Projectile 595 | . 16 11 20 17 9 35 37 . 115 . 4 185 13 133 AOE 1 | . . . . . . . . . . . . 1 . . Critical Strikes 31 | . . . . . 1 . . . 4 2 . 11 4 9 Damage Taken 10363 | . 157 148 212 305 135 268 289 . 2242 144 21 3235 236 2971 Core 1466 | . 47 25 25 79 . 23 16 . 94 . . 146 11 1000 Absorbed by Shields 617 | . . . . . . . . . 365 19 . . 60 173 Ignored by Resistances 277 | . . . 23 4 . . . . . . 37 213 . . Regen/Repaired (Parts) 127 | . . . . . . . . . . . . . . 127 Core Remaining (%) 88 | 100 . 71 93 85 . . . 94 . . 90 . . . Volleys Fired 244 | 11 28 6 16 16 8 14 11 . 60 1 4 60 8 1 Largest 3 | 2 2 2 2 3 3 3 3 . 3 3 3 3 3 2 Hottest 205 | 40 40 40 110 160 179 185 185 . 205 130 130 190 190 100 Shots Fired 613 | 22 56 12 31 37 18 29 31 . 168 3 11 169 24 2 Gun 512 | 22 56 12 31 37 18 29 31 . 133 2 8 116 16 1 Cannon 100 | . . . . . . . . . 35 1 3 53 8 . Launcher 1 | . . . . . . . . . . . . . . 1 Special . | . . . . . . . . . . . . . . . Kinetic 108 | 22 56 12 18 . . . . . . . . . . . Thermal 430 | . . . 4 23 16 20 22 . 137 3 11 169 24 1 Explosive . | . . . . . . . . . . . . . . . Electromagnetic 74 | . . . 9 14 2 9 9 . 31 . . . . . Entropic 1 | . . . . . . . . . . . . . . 1 Robot Hit Streak 24 | 3 9 5 7 10 7 12 18 . 12 4 14 24 14 11 Robot Miss Streak 8 | 5 4 1 3 4 5 3 3 . 7 2 2 8 3 . Penetration Max . | . . . . . . . . . . . . . . . Secondary Targets 6 | . . 1 1 1 . . . . 1 . . 2 . . Max Gunslinging Chain 1 | . . 1 1 1 . . . . 1 . . 1 . . Shots Hit Robots 464 | 9 34 9 23 32 15 20 25 . 129 2 10 134 20 2 Core Hits 413 | 5 13 4 19 32 8 23 38 . 136 1 8 108 13 5 Critical Kills 1 | . . . . . . . . . . . . 1 . . Critical Parts Destroyed 1 | . 1 . . . . . . . . . . . . . Critical Strikes 5 | . 1 . . 2 . . . . . . . 2 . . Burn 3 | . . . . 2 . . . . . . . 1 . . Meltdown 1 | . . . . . . . . . . . . 1 . . Destroy 1 | . 1 . . . . . . . . . . . . . Melee Attacks . | . . . . . . . . . . . . . . . Impact . | . . . . . . . . . . . . . . . Slashing . | . . . . . . . . . . . . . . . Piercing . | . . . . . . . . . . . . . . . Sneak Attacks . | . . . . . . . . . . . . . . . Combat Hostiles . | . . . . . . . . . . . . . . . Follow-up Attacks . | . . . . . . . . . . . . . . . Damage Inflicted 12047 | 129 351 95 318 637 209 401 571 . 3748 46 284 3395 596 1267 Guns 7842 | 129 351 95 318 510 209 401 571 . 2352 46 207 2186 434 33 Cannons 2181 | . . . . . . . . . 733 . 77 1209 162 . Explosions 1998 | . . . . 127 . . . . 663 . . . . 1208 Melee . | . . . . . . . . . . . . . . . Ramming 26 | . . . . . . . . . . . . . . 26 Kinetic 700 | 129 351 95 125 . . . . . . . . . . . Thermal 8909 | . . . 22 380 190 234 436 . 3293 46 284 3395 596 33 Explosive . | . . . . . . . . . . . . . . . Electromagnetic 1204 | . . . 171 257 19 167 135 . 455 . . . . . Impact . | . . . . . . . . . . . . . . . Slashing . | . . . . . . . . . . . . . . . Piercing . | . . . . . . . . . . . . . . . Entropic 1208 | . . . . . . . . . . . . . . 1208 Highest Corruption 10 | . . . . 1 . . . . 5 10 10 . . 5 Average Corruption 8 | . . . . 1 . . . . 5 9 10 . . 3 Corruption Purged . | . . . . . . . . . . . . . . . Corruption Blocked . | . . . . . . . . . . . . . . . Effects 19 | . . . . . . . . . 1 7 9 . . 2 Message Errors 11 | . . . . . . . . . 1 3 6 . . 1 Matter Fused 2 | . . . . . . . . . . . 1 . . 1 Energy Discharges 1 | . . . . . . . . . . . 1 . . . Parts Rejected 2 | . . . . . . . . . . 1 1 . . . Parts Fused 1 | . . . . . . . . . . 1 . . . . Misdirections 2 | . . . . . . . . . . 2 . . . . Overload Shots . | . . . . . . . . . . . . . . . Overflow Damage 157 | . . . . . . . . . 68 . . . 9 80 Projectiles 13 | . . . . . . . . . 4 . . . 9 . Explosions 144 | . . . . . . . . . 64 . . . . 80 Melee . | . . . . . . . . . . . . . . . Knockbacks 1 | . . . . . . . . . . . . . . 1 Impact 1 | . . . . . . . . . . . . . . 1 Kinetic . | . . . . . . . . . . . . . . . Secondary . | . . . . . . . . . . . . . . . Self-Inflicted Damage 520 | . . . . 56 . . . . 274 . . . . 190 Shots 6 | . . . . 1 . . . . 4 . . . . 1 Rammed 3 | . . . . . . . . . . . . . . 3 Targets Rammed 3 | . . . . . . . . . . . . . . 3 Kicked . | . . . . . . . . . . . . . . . Crushed . | . . . . . . . . . . . . . . . Highest Temperature 243 | . 12 24 60 232 72 201 243 . 52 . 99 153 47 . Average Temperature 52 | . 6 10 17 107 33 76 90 . 16 . 50 36 20 . Received Heat Transfer 1726 | . 66 84 87 117 . 84 72 . 362 . 9 289 94 462 Siege Activations . | . . . . . . . . . . . . . . . Martial Activations . | . . . . . . . . . . . . . . . Shielding Activations . | . . . . . . . . . . . . . . . Robots Disrupted . | . . . . . . . . . . . . . . . Combat Hostiles . | . . . . . . . . . . . . . . . Robots Corrupted . | . . . . . . . . . . . . . . . Combat Hostiles . | . . . . . . . . . . . . . . . Parts Fried 2 | . . . . . . . . . 2 . . . . . Impact Corruptions . | . . . . . . . . . . . . . . . Robots Melted 4 | . . . . . . . . . . . . 3 1 . Combat Hostiles 4 | . . . . . . . . . . . . 3 1 . Parts Melted 33 | . . . . 2 2 . . . 6 . . 22 1 . Heat Transferred 11223 | . . . 30 779 310 259 425 . 3619 57 338 4705 664 37 Parts Sabotaged . | . . . . . . . . . . . . . . . Parts Stolen . | . . . . . . . . . . . . . . . Parts Stripped . | . . . . . . . . . . . . . . . Power Chain Reactions 4 | . . . . 1 . . . . 3 . . . . . Alert | -11 -10 -10 -9 -8 -7 -7 -7 -7 -5 -5 -5 -4 -4 -4 ------- Run | Yrd Mat Min Mat Mat Fac Sto Rec Scr Fac Was Fac Fac Upp War Maximum Alert Level 3 | . . . . . 1 . . . 3 1 . 1 . . Low Security (%) 81 | 100 100 100 100 100 92 100 100 . 64 . 100 36 . . Level 1 14 | . . . . . 7 . . . 14 100 . 63 . . Level 2 1 | . . . . . . . . . 6 . . . . . Level 3 3 | . . . . . . . . . 14 . . . . . Level 4 . | . . . . . . . . . . . . . . . Level 5 . | . . . . . . . . . . . . . . . High Security . | . . . . . . . . . . . . . . . Max Security . | . . . . . . . . . . . . . . . Peak Influence 888 | 15 90 40 82 115 216 60 98 . 888 309 175 300 . . Initial 309 | . . 13 . 34 41 40 14 . . 309 175 56 . . Average 114 | 2 39 8 28 63 108 31 24 . 238 283 128 193 . . Influence Increases 3895 | 20 256 50 263 247 350 147 287 . 1382 2 62 629 60 140 Destroy 0b10 Robot/C 1900 | . 120 40 140 140 20 60 80 . 700 . 40 420 60 80 Destroy 0b10 Robot/NC 175 | 20 5 . 20 15 5 5 20 . 40 . 10 35 . . Destroy Leader 454 | . 22 10 64 52 10 30 . . 164 . 10 92 . . Allied During Kill 44 | . . . . . . . 2 . 42 . . . . . Successful Hack 274 | . 19 . 8 35 115 7 26 . 57 . . 7 . . Select Force Hacks 240 | . 30 . 30 . . 30 150 . . . . . . . Disable Machine 75 | . . . . . . 15 . . 45 . . 15 . . Anti-Garrison Action 400 | . . . . . 200 . . . 200 . . . . . Destroy Structure 123 | . . . 1 5 . . 9 . 74 2 2 30 . . Partial Spotted 30 | . 15 . . . . . . . 15 . . . . . Lose Combat Pursuer 180 | . 45 . . . . . . . 45 . . 30 . 60 Influence Decreases 3841 | 20 221 85 181 238 351 200 324 . 498 635 196 493 204 195 Entered New Map 1108 | . . 22 . 48 50 50 23 . . 575 76 61 94 109 Time Decay 2384 | 20 221 63 181 180 301 150 282 . 348 50 120 362 90 16 Lost Part 280 | . . . . 10 . . 10 . 90 10 . 70 20 70 Lost Ally 69 | . . . . . . . 9 . 60 . . . . . Squads Dispatched 37 | . 3 . 2 3 6 3 . . 10 . 2 8 . . Investigation 17 | . 2 . 1 2 3 1 . . 4 . . 4 . . Extermination 6 | . . . . . 1 1 . . 2 . 1 1 . . Reinforcement 10 | . 1 . 1 1 2 1 . . 3 . 1 . . . Assault . | . . . . . . . . . . . . . . . Garrison 4 | . . . . . . . . . 1 . . 3 . . Intercept . | . . . . . . . . . . . . . . . Searches Triggered . | . . . . . . . . . . . . . . . Construction Impeded . | . . . . . . . . . . . . . . . Haulers Reinforced . | . . . . . . . . . . . . . . . Active Scanning Responses . | . . . . . . . . . . . . . . . Cargo Convoy Interrupts . | . . . . . . . . . . . . . . . Stealth | -11 -10 -10 -9 -8 -7 -7 -7 -7 -5 -5 -5 -4 -4 -4 --------- Run | Yrd Mat Min Mat Mat Fac Sto Rec Scr Fac Was Fac Fac Upp War Distress Signals 8 | . 1 . 2 2 . . . . 2 . 1 . . . Communications Jammed . | . . . . . . . . . . . . . . . Distress Signals . | . . . . . . . . . . . . . . . Times Spotted 164 | . 12 2 14 9 4 5 3 . 42 4 6 36 3 24 Peak Tracking Total 16 | . 3 2 6 2 2 1 2 . 7 4 4 6 3 16 Tactical Retreats 7 | . 2 . . . . . . . 3 . . 1 . 1 Traps | -11 -10 -10 -9 -8 -7 -7 -7 -7 -5 -5 -5 -4 -4 -4 ------- Run | Yrd Mat Min Mat Mat Fac Sto Rec Scr Fac Was Fac Fac Upp War Traps Triggered 6 | . 1 . . 1 . . . . 2 . 1 1 . . Indirectly . | . . . . . . . . . . . . . . . Trap Hack Attempts . | . . . . . . . . . . . . . . . Triggered . | . . . . . . . . . . . . . . . Disarmed . | . . . . . . . . . . . . . . . Reprogrammed . | . . . . . . . . . . . . . . . Reused . | . . . . . . . . . . . . . . . Traps Extracted . | . . . . . . . . . . . . . . . Installed . | . . . . . . . . . . . . . . . Triggered . | . . . . . . . . . . . . . . . Machines | -11 -10 -10 -9 -8 -7 -7 -7 -7 -5 -5 -5 -4 -4 -4 ---------- Run | Yrd Mat Min Mat Mat Fac Sto Rec Scr Fac Was Fac Fac Upp War Machines Disabled 5 | . . . . . . 1 . . 3 . . 1 . . Max in Single Turn 3 | . . . . . . 1 . . 3 . . 1 . . Garrison Access 2 | . . . . . 1 . . . 1 . . . . . Machines Repaired . | . . . . . . . . . . . . . . . Machines Dismantled . | . . . . . . . . . . . . . . . Machines Sabotaged . | . . . . . . . . . . . . . . . Overloaded Fab Kills . | . . . . . . . . . . . . . . . Hacking | -11 -10 -10 -9 -8 -7 -7 -7 -7 -5 -5 -5 -4 -4 -4 --------- Run | Yrd Mat Min Mat Mat Fac Sto Rec Scr Fac Was Fac Fac Upp War Machines Accessed 61 | . 4 1 5 5 11 4 10 3 10 . 1 6 . 1 Terminals 29 | . 3 . 3 5 4 3 5 . 4 . 1 1 . . Fabricators 5 | . . . . . 4 . . . 1 . . . . . Repair Stations 1 | . . . . . 1 . . . . . . . . . Recycling Units 15 | . 1 . 1 . . 1 5 . 3 . . 4 . . Scanalyzers 3 | . . . 1 . 1 . . . 1 . . . . . Garrison Access 3 | . . . . . 1 . . . 1 . . 1 . . Total Hacks 149 | . 8 1 16 16 45 6 14 10 19 . 1 12 . 1 Successful 79 | . 4 1 6 9 27 3 7 10 7 . . 4 . 1 Failed 70 | . 4 . 10 7 18 3 7 . 12 . 1 8 . . Catastrophic 17 | . 2 . 3 3 2 1 3 . 2 . 1 . . . Database Lockouts . | . . . . . . . . . . . . . . . Manual 101 | . 9 . 9 14 23 7 13 . 14 . 1 11 . . Terminals 72 | . 7 . 11 16 14 5 8 . 8 . 1 2 . . Fabricators 15 | . . . . . 13 . . . 2 . . . . . Repair Stations 3 | . . . . . 3 . . . . . . . . . Recycling Units 22 | . 1 . 1 . . 1 6 . 6 . . 7 . . Scanalyzers 20 | . . . 4 . 14 . . . 2 . . . . . Garrison Access 5 | . . . . . 1 . . . 1 . . 3 . . Terminal Hacks 29 | . 3 1 1 6 4 1 . 10 1 . . 1 . 1 Record 5 | . . . . . . . . 5 . . . . . . Part Schematic 2 | . 1 . . 1 . . . . . . . . . . Robot Analysis 13 | . 2 . . 3 2 . . 5 . . . 1 . . Prototype ID Bank 1 | . . . . 1 . . . . . . . . . . Open Door 2 | . . 1 . . . . . . . . . . . 1 Branch Access Points 5 | . . . 1 1 1 1 . . 1 . . . . . Fabricator Index 1 | . . . . . 1 . . . . . . . . . Fabricator Hacks 3 | . . . . . 2 . . . 1 . . . . . Load Schematic 1 | . . . . . 1 . . . . . . . . . Build 2 | . . . . . 1 . . . 1 . . . . . Repair Station Hacks 1 | . . . . . 1 . . . . . . . . . Scan Component 1 | . . . . . 1 . . . . . . . . . Recycling Unit Hacks . | . . . . . . . . . . . . . . . Scanalyzer 18 | . . . 4 . 13 . . . 1 . . . . . Insert Component 7 | . . . 1 . 6 . . . . . . . . . Analyze 7 | . . . 1 . 6 . . . . . . . . . Retrieve Study 4 | . . . 2 . 1 . . . 1 . . . . . Garrison Access Hacks . | . . . . . . . . . . . . . . . Unauthorized Hacks 28 | . 1 . 1 3 7 2 7 . 4 . . 3 . . Terminals 11 | . . . . 3 4 1 2 . 1 . . . . . Botnet 11 | . . . . 3 4 1 2 . 1 . . . . . Fabricators 2 | . . . . . 2 . . . . . . . . . Fabnet 2 | . . . . . 2 . . . . . . . . . Repair Stations . | . . . . . . . . . . . . . . . Recycling Units 13 | . 1 . 1 . . 1 5 . 2 . . 3 . . Tunnel 8 | . 1 . 1 . . 1 5 . . . . . . . Fedlink 5 | . . . . . . . . . 2 . . 3 . . Scanalyzers . | . . . . . . . . . . . . . . . Garrison Access 2 | . . . . . 1 . . . 1 . . . . . Jam 2 | . . . . . 1 . . . 1 . . . . . Data Cores Recovered 2 | . . . . . . 1 . . . . . 1 . . Used . | . . . . . . . . . . . . . . . Hacking Detections 42 | . 3 . 4 5 10 3 6 . 7 . 1 3 . . Full Trace Events 9 | . 1 . 2 2 2 . . . 1 . . 1 . . Feedback Events 1 | . . . . 1 . . . . . . . . . . Corruption 1 | . . . . 1 . . . . . . . . . . Feedback Blocked . | . . . . . . . . . . . . . . . Robot Schematics Acquired . | . . . . . . . . . . . . . . . Robots Built . | . . . . . . . . . . . . . . . Authchips . | . . . . . . . . . . . . . . . Time . | . . . . . . . . . . . . . . . Total Robot Build Rating . | . . . . . . . . . . . . . . . Part Schematics Acquired 9 | . 1 . 1 1 6 . . . . . . . . . Parts Built 2 | . . . . . 1 . . . 1 . . . . . Authchips . | . . . . . . . . . . . . . . . Time 60 | . . . . . 25 . . . 35 . . . . . Total Part Build Rating 7 | . . . . . 1 . . . 6 . . . . . Part Studies Acquired 4 | . . . 2 . 1 . . . 1 . . . . . Parts Repaired . | . . . . . . . . . . . . . . . Time . | . . . . . . . . . . . . . . . Parts Recycled . | . . . . . . . . . . . . . . . Recycled Matter . | . . . . . . . . . . . . . . . Retrieved Matter . | . . . . . . . . . . . . . . . Retrieved Components . | . . . . . . . . . . . . . . . Parts Scanalyzed 7 | . . . 1 . 6 . . . . . . . . . Part Schematics Acquired 7 | . . . 1 . 6 . . . . . . . . . Parts Damaged . | . . . . . . . . . . . . . . . Bothacking | -11 -10 -10 -9 -8 -7 -7 -7 -7 -5 -5 -5 -4 -4 -4 ------------ Run | Yrd Mat Min Mat Mat Fac Sto Rec Scr Fac Was Fac Fac Upp War Used RIF Installer . | . . . . . . . . . . . . . . . Robots Hacked 1 | . . . . . . . . . 1 . . . . . Non-combat . | . . . . . . . . . . . . . . . Combat 1 | . . . . . . . . . 1 . . . . . Robot Hacks Applied . | . . . . . . . . . . . . . . . Relay Couplers Released 3 | . . . . . . . . . . . . 3 . . Programmers 3 | . . . . . . . . . . . . 3 . . Fabnet Peak Effective % 2 | . . . . . . . . . 2 2 2 . . . Autooverrided 1 | . . . . . . . . . 1 . . . . . Robots Rewired 7 | . . . . . . . 7 . . . . . . . Allies Hacked 1 | . . . . . . . . . 1 . . . . . Hacks Repelled . | . . . . . . . . . . . . . . . Allies | -11 -10 -10 -9 -8 -7 -7 -7 -7 -5 -5 -5 -4 -4 -4 -------- Run | Yrd Mat Min Mat Mat Fac Sto Rec Scr Fac Was Fac Fac Upp War Total Allies 11 | . . 1 . . . . 7 1 2 . . . . . Largest Group 7 | . . 1 . . . . 7 1 2 . . . . . Highest-Rated Group 124 | . . 31 . . . . 84 56 124 . . . . . Highest-Rated Ally 68 | . . 31 . . . . 34 56 68 . . . . . Initial UFD Resources 70 | . . . . . . . . . 38 52 52 54 70 70 Total Orders . | . . . . . . . . . . . . . . . Ally Attacks 56 | . . 5 . . . . 2 . 49 . . . . . Total Damage 1656 | . . 83 . . . . 187 . 1386 . . . . . Kills 12 | . . . . . . . 3 . 9 . . . . . Allies Corrupted . | . . . . . . . . . . . . . . . Allies Melted . | . . . . . . . . . . . . . . . Intel | -11 -10 -10 -9 -8 -7 -7 -7 -7 -5 -5 -5 -4 -4 -4 ------- Run | Yrd Mat Min Mat Mat Fac Sto Rec Scr Fac Was Fac Fac Upp War Active Infowar (turns) 8468 | 44 544 291 428 366 725 305 902 1741 1331 115 252 822 184 418 Optics 6794 | . . . . . 724 305 902 1741 1331 115 252 822 184 418 Seismic 3718 | 44 544 291 428 366 725 305 648 . . . 137 230 . . Robot Analysis Total 13 | . 2 . . 3 2 . . 5 . . . 1 . . Derelict Logs Recovered 1 | . . 1 . . . . . . . . . . . . Drone Launches . | . . . . . . . . . . . . . . . Drone Recoveries . | . . . . . . . . . . . . . . . Exploration | -11 -10 -10 -9 -8 -7 -7 -7 -7 -5 -5 -5 -4 -4 -4 ------------- Run | Yrd Mat Min Mat Mat Fac Sto Rec Scr Fac Was Fac Fac Upp War Turns Passed 8567 | 130 544 291 428 366 725 305 902 1741 1331 115 252 822 184 431 Spaces Moved 6075 | 89 391 182 294 258 599 198 606 1352 807 87 170 511 135 396 Core 66 | 1 . . . . . . . . . . . . . 65 Treads . | . . . . . . . . . . . . . . . Legs . | . . . . . . . . . . . . . . . Wheels 6009 | 88 391 182 294 258 599 198 606 1352 807 87 170 511 135 331 Hover . | . . . . . . . . . . . . . . . Flight . | . . . . . . . . . . . . . . . Fastest Speed 50 | 50 80 140 106 106 106 115 115 125 113 113 128 110 110 50 Average Speed 115 | 87 110 140 111 106 106 115 122 125 115 121 128 114 110 100 Slowest Speed 160 | 100 140 140 125 106 115 115 130 125 135 128 128 128 115 160 Overloaded Moves . | . . . . . . . . . . . . . . . Propulsion Burnouts . | . . . . . . . . . . . . . . . Robots Hopped . | . . . . . . . . . . . . . . . Potential Cave-ins 3 | . . . . . . . . . . 3 . . . . Cave-ins Triggered . | . . . . . . . . . . . . . . . Exploration Rate (%) 42 | 5 69 44 33 29 21 38 89 80 25 92 7 19 34 52 Regions Visited 14 Branch Regions 6 Pre-discovered Areas 10 | . 1 1 1 . . 1 5 . 1 . . . . . Known Exits Taken 2 | . . . . . 1 1 . . . . . . . . Unknown Exits Taken 10 | 1 1 1 1 1 . . 1 1 . . 1 1 1 . Scrap Searched 7 | . . 1 . . . . . 6 . . . . . . Spaces Dug 1 | . . . . . . . . . . . . 1 . . Terrain Destroyed 104 | . . . . 4 . . . . 32 1 1 12 3 51 Melee . | . . . . . . . . . . . . . . . Projectile 24 | . . . . . . . . . 7 1 1 12 3 . AOE 80 | . . . . 4 . . . . 25 . . . . 51 Terrain Rammed . | . . . . . . . . . . . . . . . Walls Destroyed . | . . . . . . . . . . . . . . . Machines Disabled . | . . . . . . . . . . . . . . . Actions | -11 -10 -10 -9 -8 -7 -7 -7 -7 -5 -5 -5 -4 -4 -4 --------- Run | Yrd Mat Min Mat Mat Fac Sto Rec Scr Fac Was Fac Fac Upp War Total 7137 | 117 452 207 369 321 680 258 743 1413 1089 96 194 619 152 427 Wait 359 | 4 18 17 21 27 47 22 24 21 119 . 12 16 3 8 Move 6062 | 88 390 181 293 257 598 197 605 1351 807 86 169 510 134 396 Hop . | . . . . . . . . . . . . . . . Pick Up 124 | 5 9 3 15 8 9 6 1 15 29 1 2 15 2 4 Fast Attach 33 | 6 1 . 2 . 1 3 1 . 11 2 2 2 . 2 Attach 40 | 1 . . 5 3 2 . 1 . 11 . 1 8 4 4 Detach 11 | . . . 4 . . . . . 4 1 . . . 2 Swap 48 | 2 3 . 4 3 4 4 4 6 12 . 2 3 . 1 Drop 122 | . 3 . 9 7 11 12 5 20 36 5 2 5 1 6 Fire 244 | 11 28 6 16 16 8 14 11 . 60 1 4 60 8 1 Melee . | . . . . . . . . . . . . . . . Ram 3 | . . . . . . . . . . . . . . 3 Kick . | . . . . . . . . . . . . . . . Crush . | . . . . . . . . . . . . . . . Escape Stasis . | . . . . . . . . . . . . . . . Rewire 91 | . . . . . . . 91 . . . . . . . Trap . | . . . . . . . . . . . . . . . Miscellaneous . | . . . . . . . . . . . . . . . Route ------- -11/Scrapyard -10/Materials (discovered 4 exits: *Mat x2 / *Min x2) -10/Mines -9/Materials (discovered 2 exits: *Mat / Min) -8/Materials -7/Factory (discovered 3 exits: *Sto / Low x2) -7/Storage -7/Recycling (discovered 2 exits: *Fac / *Scr) -7/Scraptown -5/Factory (discovered 2 exits: Upp x2) -5/Waste -5/Factory (discovered 2 exits: *Fac / *Upp) -4/Factory -4/Upper Caves -4/Warlord History --------- Turn | Location | Event 21 | -11/Scrapyard | Discovered new exit (range 16) 131 | -11/Scrapyard | Entered Materials 269 | -10/Materials | Discovered new exit (range 14) 303 | -10/Materials | Build established: Mutant 342 | -10/Materials | Discovered new exit (range 9) 469 | -10/Materials | Discovered new exit (range 9) 578 | -10/Materials | Discovered new exit (range 6) 675 | -10/Materials | Entered Mines 678 | -10/Mines | Received a Mining Laser from a helpful Derelict 829 | -10/Mines | Learned location of Zion (-6) 890 | -10/Mines | Met a Derelict who couldn't figure out how to use a Trap Extractor 953 | -10/Mines | Discovered new exit (range 8) 966 | -10/Mines | Entered Materials 966 | -9/Materials | Evolved 2 slots: Propulsion x1, Utility x1 1266 | -9/Materials | Identified exit to Mines 1346 | -9/Materials | Discovered new exit (range 16) 1394 | -9/Materials | Entered another Materials area 1394 | -8/Materials | Evolved 2 slots: Utility x1, Weapon x1 1656 | -8/Materials | Met 7R-MNS 1702 | -8/Materials | Build established: Tank 1729 | -8/Materials | Discovered new exit (range 16) 1760 | -8/Materials | Entered Factory 1760 | -7/Factory | Evolved 2 slots: Utility x2 1761 | -7/Factory | Caught up to 7R-MNS 2020 | -7/Factory | Identified exit to Storage 2020 | -7/Factory | Identified exit to Lower Caves 2068 | -7/Factory | Build established: Scavenger-Tank 2208 | -7/Factory | Fabricated Huge Storage Unit (x1) 2485 | -7/Factory | Entered Storage 2722 | -7/Storage | Identified exit to Recycling 2785 | -7/Storage | Used back door to open Recycling access 2790 | -7/Storage | Entered Recycling 3124 | -7/Recycling | Discovered new exit (range 15) 3289 | -7/Recycling | Build established: Commander-Tank 3460 | -7/Recycling | Lost 7 allies 3658 | -7/Recycling | Scanned before Scraplab entrance 3675 | -7/Recycling | Entered Scraplab 3685 | -7/Recycling | Discovered new exit (range 2) 3692 | -7/Recycling | Entered Scraptown 3730 | -7/Scraptown | Build established: Tank 3778 | -7/Scraptown | Heard Great Nut preacher, LISTEN AND RECITE! 3855 | -7/Scraptown | Visited UFD Registry 3855 | -7/Scraptown | Registered with UFD as "Flexigrid" 3872 | -7/Scraptown | Visited The Evicted 3902 | -7/Scraptown | Visited IN-MT5's Study 3917 | -7/Scraptown | Visited Bundlers 4004 | -7/Scraptown | Visited Assassins FH 4014 | -7/Scraptown | Visited Red Mages 4030 | -7/Scraptown | Visited Symbiants 4058 | -7/Scraptown | Visited Shadow of the Wyrm 4093 | -7/Scraptown | Visited Chapter 10 4110 | -7/Scraptown | Visited Botcube Research 4147 | -7/Scraptown | Visited Scrapoid Research Area 4165 | -7/Scraptown | Visited Analyses Database 4191 | -7/Scraptown | Visited Derelict Rescue Squad 4213 | -7/Scraptown | Visited Junk Repository 4270 | -7/Scraptown | Visited A0-MCA Data Center 4277 | -7/Scraptown | Given an A rating by A0-MCA 4283 | -7/Scraptown | Found A0-MCA's Component Scanner 4311 | -7/Scraptown | Visited Curators Association 4353 | -7/Scraptown | Visited Abandonware Association 4366 | -7/Scraptown | Learned abandonware demo "REPAIR.EXE" 4366 | -7/Scraptown | Learned abandonware demo "MELTYB.EXE" 5253 | -7/Scraptown | Lrg. Botcube activated 5275 | -7/Scraptown | Lrg. Botcube completed mutation into wheeled form, armed with 3 guns. 5338 | -7/Scraptown | Met Optimus 5338 | -7/Scraptown | Accepted into 0bPrime 5404 | -7/Scraptown | Found Scrap Suit 5407 | -7/Scraptown | Found Scrap Suit 5429 | -7/Scraptown | Discovered new exit (range 3) 5433 | -7/Scraptown | Entered Factory 5433 | -5/Factory | Accompanied by 1 ally 5433 | -5/Factory | Evolved 4 slots: Power x1, Propulsion x1, Utility x2 5708 | -5/Factory | Loaded intel: 8 recycling unit locations 5984 | -5/Factory | Learned location of Protoforge (-2) 6113 | -5/Factory | Lrg. Botcube activated 6131 | -5/Factory | Lrg. Botcube completed mutation into wheeled form, armed with 2 cannons. 6295 | -5/Factory | Identified exit to Upper Caves 6379 | -5/Factory | Fabricated Lyr. Heavy Armor Plating (x1) 6504 | -5/Factory | Garrison activated, responded to threat 6764 | -5/Factory | Sucked down chute 6764 | -5/Factory | Entered Waste 6767 | -5/Waste | Spotted C-40 Crusher 6779 | -5/Waste | EMP discharged 6779 | -5/Waste | System corruption reached 10% 6789 | -5/Waste | Found Damper Plating 6798 | -5/Waste | Spotted C-40 Crusher 6798 | -5/Waste | Spotted C-40 Crusher 6798 | -5/Waste | Spotted C-40 Crusher 6812 | -5/Waste | Found Damper Plating 6840 | -5/Waste | Spotted C-40 Crusher 6851 | -5/Waste | Crushed by Compactor (1 part destroyed, 1 dropped) 6868 | -5/Waste | Discovered new exit (range 10) 6879 | -5/Waste | EMP discharged 6879 | -5/Waste | Entered Factory 7074 | -5/Factory | Discovered exit to Upper Caves (range 12) 7115 | -5/Factory | Discovered new exit (range 12) 7131 | -5/Factory | Entered another Factory area 7131 | -4/Factory | Evolved 2 slots: Propulsion x1, Utility x1 7153 | -4/Factory | Build established: Scavenger-Tank 7419 | -4/Factory | Lost 4 parts (2n2u) 7447 | -4/Factory | Spotted B-86 Titan 7449 | -4/Factory | Loaded intel: 8 recycling unit locations 7510 | -4/Factory | Garrison activated, responded to threat 7936 | -4/Factory | Discovered new exit (range 3) 7953 | -4/Factory | Entered Upper Caves 7969 | -4/Upper Caves | Attracted the attention of an 0b10 checkpoint 8004 | -4/Upper Caves | Lost 3 parts (1n2u) 8094 | -4/Upper Caves | Spotted B-86 Titan 8124 | -4/Upper Caves | A Derelict revealed a hidden shortcut to "reach the base" 8137 | -4/Upper Caves | Entered Warlord 8402 | -4/Warlord | Visited the Vortex Lab 8413 | -4/Warlord | Found Prototype Launcher 8415 | -4/Warlord | Found Prototype Piercing Weapon 8415 | -4/Warlord | Identified Vortex Lance 8419 | -4/Warlord | Warlord's base attacked by MAIN.C 8421 | -4/Warlord | Found Prototype Energy Gun 8421 | -4/Warlord | Identified Vortex Shotgun 8425 | -4/Warlord | Found Vortex Shotgun 8523 | -4/Warlord | Identified Vortex Catalyst Activator 8524 | -4/Warlord | Spotted B-86 Titan 8524 | -4/Warlord | Spotted B-90 Cyclops 8529 | -4/Warlord | Core integrity fell below 50% 8563 | -4/Warlord | Core integrity fell below 20% 8568 | -4/Warlord | Destroyed by G-67 Veteran with Field Laser Last Messages --------------- 08526_ Slug penetrates System Quarantine Field Array. 08527_ Dropped Huge Storage Unit. 08527_ Scrap Suit destroyed. 08527_ Dropped Vortex Catalyst Activator. 08528_ Dropped Adv. Variable Charge Gun. 08531_ Critical hit (Burn: +37). 08535_ Penetrated by Slug. 08535_ Slug penetrates Wall. 08537_ System corrupted: Matter fused (-7). 08552_ Adv. Heat Sink destroyed. 08555_ Enh. Optical Array destroyed. 08556_ B-90 Cyclops triggered Dirty Bomb Trap. 08556_ An explosion rips through the floor. 08558_ X-87 Electro IFF system glitched. 08559_ Slug penetrates X-87 Electro. 08560_ SGTBV7 PUJIXTB4R29S# FZ5TK:5SYG7G/I7AWM 08566_ Penetrated by Slug. 08566_ Slug penetrates Earth. 08568_ Slammed into M-36 Artificer. 08568_ M-36 Artificer knocked back. Map ----- +----------------------------------------------------+ | ?????????????????????????????? | | ?????????????????????????????? | | ?????????????????????????????? | | ?????????????????????????????? | | ?????????????????????????????? | | ??????? ????????????????????? | | ???????? ????????????????????? | | ????????? ???????????????????? | | ?????????? ??????????????????? | | ??????????# ?????##??????????? | | ??????????? ??### ?????#????? | | ???????????? ?? ????? ##??? | | ????????????? ### ????? ##? | | ?????????????? ????? ?? | | ??????????????# #???? ?? | | ??????????????# ???? #?? | | ???????????????# ##?? #?? | | ?????????########^ #?? ##? | | #??????### ### #### #? | | ########"""" ## ;;# #?? | | """""""" " ### ; ###? | | """ """ "]"""" ## " | | !*][ ""# ??? | | !!%=! ## g #??? | | % %*!%] #### m###? | | [*[!* ####;h@# #? | | "" "" ][!"" #?# ; ;;#? | | "" """"" "[ " #?##; g ;#? | | ##########"" " #### gBB ; # | | #????????## ##" #?# BB ; # | | ??????????##### ### g ; | | ?????????????# ### ;;## | | ????????????## ##?# ###? | | ????????????# #??## ##??? | | ????????????# #???## #???? | | ????????????# ##????# #???? | | ????????????# #????##; ##??? | | ???????????## ##???#;; #??? | | ??????????## ##??## #??? | | ??????????# "#?#g #??? | | ??????????# ## "## x #??? | | ?????????# #?## %"# #??? | | ???????? ??#"" "# #??? | | ?????? ??# " "" ##??? | | ?????# ## ????#" #???? | | ?????####?#?????##"# ##???? | | ?????????????????########????? | | ?????????????????????????????? | | ?????????????????????????????? | | ?????????????????????????????? | +----------------------------------------------------+ Best States ------------- Heat Dissipation 93 Energy Generation 39 Energy Capacity 550 Matter Stores 300 Matter Capacity 300 Sight Range 22 Terrain Scan Density 10 Armor Coverage 1825 Resistance: KI 20 Resistance: EM 90 Phase Shifting 10 Evasion (%) 50 Offensive Hacking 10 Item Schematics ----------------- Huge Storage Unit | -10/Materials | Hacked Reactive Plating | -9/Materials | Scanalyzed Imp. Light Armor Plating | -8/Materials | Hacked Arm. Wheel | -7/Factory | Scanalyzed Rocket Launcher | -7/Factory | Scanalyzed Hpw. Tractor Beam | -7/Factory | Scanalyzed Wheel | -7/Factory | Scanalyzed Hacking Suite | -7/Factory | Scanalyzed Hvy. Particle Cannon | -7/Factory | Scanalyzed Robot Schematics ------------------ None Fabricated ------------ Huge Storage Unit | x1 | -7/Factory Lyr. Heavy Armor Plating | x1 | -5/Factory | Preloaded Repaired ---------- Nothing Studied --------- Wheel | -9/Materials | Hacked Com. Wheel | -9/Materials | Hacked Arm. Wheel | -7/Factory | Hacked Arm. Huge Wheel | -5/Factory | Hacked Alien Tech Used ----------------- None Achievements -------------- Network Effect Challenges ------------ None Game ------ Seed TripodBattleFlakker Manual? 0 Play Time 01:35:12 Cumulative 177.1 hours Start 2026.07.05 @ 19:07:36 End 2026.07.05 @ 21:55:17 Sessions 5 Manual Loads 0 Difficulty Rogue Special Mode None Game No. 238 Rogue 238 Adventurer 0 Explorer 0 Win Type - Total 3 Types 3/0/0/0/0/0/0/0/0/0 Lore% 76 Gallery% 56 Achievement% 43 Wizard Run 0 Options --------- Layout 0 ASCII 0 Keyboard 0 Movement Numpad Keybinds 0 Fullscreen 1 Font 18/Terminus Map View 76x50 Zoom Use 0% Tactical HUD 1 Map Filters NONE Filters NONE Steam 1 RUN: bf210a97-1579-4ce2-ab37-bda6402290ea